[Event "Titled Tuesday Blitz January 17 Early 2023"]
[White "Korobov, Anton"]
[Black "Arjun, Kalyan"]
[WhiteFideId "14105730"]
[BlackFideId "35018701"]
[WhiteElo "2664"]
[BlackElo "2516"]
[Result "1-0"]
[Round "06"]
[TimeControl "180+2"]
[Date "2023.01.17"]
[WhiteClock "0:00:48"]
[BlackClock "0:00:10"]

1. d4 {[%clk 0:03:00]}  Nf6 {[%clk 0:02:59]} 2. c4 {[%clk 0:02:58]}  e6 {[%clk 0:02:59]} 3. Nc3 {[%clk 0:02:58]}  Bb4 {[%clk 0:02:59]} 4. e3 {[%clk 0:02:59]}  O-O {[%clk 0:02:58]} 5. Bd3 {[%clk 0:02:58]}  d5 {[%clk 0:02:58]} 6. a3 {[%clk 0:02:59]}  Bxc3+ {[%clk 0:02:58]} 7. bxc3 {[%clk 0:03:00]}  dxc4 {[%clk 0:02:59]} 8. Bxc4 {[%clk 0:03:00]}  c5 {[%clk 0:03:00]} 9. Nf3 {[%clk 0:02:58]}  Qc7 {[%clk 0:03:00]} 10. Ba2 {[%clk 0:02:55]}  b5 {[%clk 0:02:57]} 11. O-O {[%clk 0:02:52]}  Bb7 {[%clk 0:02:57]} 12. Re1 {[%clk 0:02:52]}  Nbd7 {[%clk 0:02:54]} 13. Bb2 {[%clk 0:02:49]}  Nb6 {[%clk 0:02:52]} 14. Rc1 {[%clk 0:02:43]}  a6 {[%clk 0:02:45]} 15. c4 {[%clk 0:02:33]}  bxc4 {[%clk 0:02:30]} 16. Bxc4 {[%clk 0:02:21]}  Nxc4 {[%clk 0:02:15]} 17. Rxc4 {[%clk 0:02:21]}  Qb6 {[%clk 0:02:13]} 18. Qc1 {[%clk 0:02:18]}  Bxf3 {[%clk 0:01:57]} 19. dxc5 {[%clk 0:02:16]}  Qc6 {[%clk 0:01:55]} 20. gxf3 {[%clk 0:02:16]}  Qxf3 {[%clk 0:01:54]} 21. Rf4 {[%clk 0:02:15]}  Qd5 {[%clk 0:01:54]} 22. Bxf6 {[%clk 0:02:06]}  gxf6 {[%clk 0:01:53]} 23. Qc3 {[%clk 0:02:06]}  Qe5 {[%clk 0:01:22]} 24. Rg4+ {[%clk 0:01:58]}  Kh8 {[%clk 0:01:22]} 25. Qxe5 {[%clk 0:01:51]}  fxe5 {[%clk 0:01:23]} 26. Rb1 {[%clk 0:01:50]}  Rg8 {[%clk 0:01:19]} 27. Rxg8+ {[%clk 0:01:47]}  Rxg8+ {[%clk 0:01:20]} 28. Kf1 {[%clk 0:01:47]}  Rc8 {[%clk 0:01:21]} 29. Rc1 {[%clk 0:01:46]}  Kg8 {[%clk 0:01:21]} 30. Ke2 {[%clk 0:01:46]}  Kf8 {[%clk 0:01:21]} 31. Kd3 {[%clk 0:01:46]}  Ke7 {[%clk 0:01:19]} 32. Kc4 {[%clk 0:01:46]}  Rg8 {[%clk 0:01:17]} 33. Rb1 {[%clk 0:01:44]}  Rg4+ {[%clk 0:01:15]} 34. Kc3 {[%clk 0:01:36]}  Rg2 {[%clk 0:01:13]} 35. Rb7+ {[%clk 0:01:36]}  Kf6 {[%clk 0:00:58]} 36. c6 {[%clk 0:01:36]}  Rg1 {[%clk 0:00:59]} 37. c7 {[%clk 0:01:31]}  Rc1+ {[%clk 0:00:59]} 38. Kb4 {[%clk 0:01:31]}  e4 {[%clk 0:00:53]} 39. Ka5 {[%clk 0:01:31]}  Rc6 {[%clk 0:00:53]} 40. a4 {[%clk 0:01:26]}  Ke5 {[%clk 0:00:49]} 41. c8=Q {[%clk 0:01:24]}  Rxc8 {[%clk 0:00:49]} 42. Rxf7 {[%clk 0:01:24]}  Ra8 {[%clk 0:00:40]} 43. Rxh7 {[%clk 0:01:23]}  Rf8 {[%clk 0:00:40]} 44. Kxa6 {[%clk 0:01:17]}  Rxf2 {[%clk 0:00:40]} 45. a5 {[%clk 0:01:18]}  Re2 {[%clk 0:00:39]} 46. Rh3 {[%clk 0:01:16]}  Rb2 {[%clk 0:00:37]} 47. Ka7 {[%clk 0:01:15]}  Kd6 {[%clk 0:00:36]} 48. a6 {[%clk 0:01:15]}  Rb3 {[%clk 0:00:34]} 49. Ka8 {[%clk 0:01:12]}  Kc7 {[%clk 0:00:34]} 50. a7 {[%clk 0:01:12]}  Ra3 {[%clk 0:00:31]} 51. Rh7+ {[%clk 0:01:10]}  Kc8 {[%clk 0:00:31]} 52. Rh5 {[%clk 0:01:06]}  Kc7 {[%clk 0:00:11]} 53. Rc5+ {[%clk 0:00:43]}  Kb6 {[%clk 0:00:10]} 54. Kb8 {[%clk 0:00:43]}  Kxc5 {[%clk 0:00:03]} 55. a8=Q {[%clk 0:00:44]}  Rxa8+ {[%clk 0:00:03]} 56. Kxa8 {[%clk 0:00:45]}  Kc4 {[%clk 0:00:04]} 57. h4 {[%clk 0:00:45]}  Kd5 {[%clk 0:00:04]} 58. Kb7 {[%clk 0:00:44]}  Ke5 {[%clk 0:00:04]} 59. Kc6 {[%clk 0:00:43]}  Kf5 {[%clk 0:00:05]} 60. Kd6 {[%clk 0:00:44]}  Kg4 {[%clk 0:00:05]} 61. Kxe6 {[%clk 0:00:43]}  Kxh4 {[%clk 0:00:06]} 62. Ke5 {[%clk 0:00:43]}  Kg5 {[%clk 0:00:07]} 63. Kxe4 {[%clk 0:00:44]}  Kf6 {[%clk 0:00:08]} 64. Kd5 {[%clk 0:00:44]}  Ke7 {[%clk 0:00:07]} 65. Ke5 {[%clk 0:00:45]}  Kf7 {[%clk 0:00:07]} 66. Kd6 {[%clk 0:00:45]}  Ke8 {[%clk 0:00:07]} 67. e4 {[%clk 0:00:45]}  Kd8 {[%clk 0:00:08]} 68. e5 {[%clk 0:00:45]}  Ke8 {[%clk 0:00:08]} 69. Ke6 {[%clk 0:00:46]}  Kd8 {[%clk 0:00:07]} 70. Kf7 {[%clk 0:00:46]}  Kd7 {[%clk 0:00:08]} 71. e6+ {[%clk 0:00:46]}  Kd6 {[%clk 0:00:09]} 72. e7 {[%clk 0:00:47]}  Kd5 {[%clk 0:00:10]} 73. e8=Q {[%clk 0:00:48]} 1-0


[Site "https://www.chess.com"]

[Event "Titled Tuesday Blitz January 17 Early 2023"]
[White "Narayanan, Srinath"]
[Black "Boruchovsky, Avital"]
[WhiteFideId "5018420"]
[BlackFideId "2800055"]
[WhiteElo "2559"]
[BlackElo "2539"]
[Result "0-1"]
[Round "06"]
[TimeControl "180+2"]
[Date "2023.01.17"]
[WhiteClock "0:00:04"]
[BlackClock "0:00:15"]

1. Nf3 {[%clk 0:02:56]}  c5 {[%clk 0:02:59]} 2. c4 {[%clk 0:02:56]}  Nc6 {[%clk 0:02:58]} 3. Nc3 {[%clk 0:02:55]}  g6 {[%clk 0:02:58]} 4. g3 {[%clk 0:02:54]}  Bg7 {[%clk 0:02:58]} 5. Bg2 {[%clk 0:02:55]}  e5 {[%clk 0:02:58]} 6. O-O {[%clk 0:02:55]}  Nge7 {[%clk 0:02:58]} 7. d3 {[%clk 0:02:56]}  O-O {[%clk 0:02:58]} 8. Nd2 {[%clk 0:02:47]}  d6 {[%clk 0:02:54]} 9. a3 {[%clk 0:02:42]}  a5 {[%clk 0:02:46]} 10. Nde4 {[%clk 0:02:30]}  f5 {[%clk 0:02:45]} 11. Nd2 {[%clk 0:02:26]}  h6 {[%clk 0:02:44]} 12. Nd5 {[%clk 0:02:26]}  Kh7 {[%clk 0:02:44]} 13. e3 {[%clk 0:02:25]}  Nxd5 {[%clk 0:02:40]} 14. cxd5 {[%clk 0:02:25]}  Ne7 {[%clk 0:02:39]} 15. Rb1 {[%clk 0:02:25]}  b6 {[%clk 0:02:35]} 16. b4 {[%clk 0:02:21]}  axb4 {[%clk 0:02:18]} 17. axb4 {[%clk 0:02:22]}  f4 {[%clk 0:02:07]} 18. Qb3 {[%clk 0:02:12]}  Nf5 {[%clk 0:01:57]} 19. Ne4 {[%clk 0:02:10]}  g5 {[%clk 0:01:43]} 20. bxc5 {[%clk 0:02:08]}  bxc5 {[%clk 0:01:42]} 21. Qb6 {[%clk 0:02:09]}  Ba6 {[%clk 0:01:37]} 22. Rd1 {[%clk 0:02:04]}  Qe7 {[%clk 0:01:26]} 23. g4 {[%clk 0:02:02]}  Rfb8 {[%clk 0:01:13]} 24. gxf5 {[%clk 0:01:53]}  Rxb6 {[%clk 0:01:11]} 25. Rxb6 {[%clk 0:01:54]}  Qf7 {[%clk 0:01:04]} 26. Nxd6 {[%clk 0:01:33]}  Qh5 {[%clk 0:01:03]} 27. f3 {[%clk 0:01:24]}  g4 {[%clk 0:00:47]} 28. f6 {[%clk 0:00:15]}  gxf3 {[%clk 0:00:45]} 29. fxg7 {[%clk 0:00:16]}  fxg2 {[%clk 0:00:44]} 30. Rd2 {[%clk 0:00:16]}  Bxd3 {[%clk 0:00:33]} 31. Rxd3 {[%clk 0:00:10]}  Qf3 {[%clk 0:00:32]} 32. Rd1 {[%clk 0:00:04]}  Qxd1+ {[%clk 0:00:31]} 33. Kxg2 {[%clk 0:00:04]}  Ra2+ {[%clk 0:00:26]} 34. Bb2 {[%clk 0:00:05]}  Qe2+ {[%clk 0:00:21]} 35. Kh3 {[%clk 0:00:05]}  Rxb2 {[%clk 0:00:17]} 36. Rxb2 {[%clk 0:00:05]}  Qxb2 {[%clk 0:00:18]} 37. exf4 {[%clk 0:00:05]}  exf4 {[%clk 0:00:18]} 38. Nf5 {[%clk 0:00:06]}  Qf6 {[%clk 0:00:17]} 39. Kg4 {[%clk 0:00:06]}  f3 {[%clk 0:00:17]} 40. d6 {[%clk 0:00:03]}  f2 {[%clk 0:00:15]} 41. Ne7 {[%clk 0:00:04]}  Qxg7+ {[%clk 0:00:15]} 0-1


[Site "https://www.chess.com"]

[Event "Titled Tuesday Blitz January 17 Early 2023"]
[White "Kilic, Eray"]
[Black "Timofeev, Artyom"]
[WhiteFideId "44517173"]
[BlackFideId "4140419"]
[WhiteElo "2414"]
[BlackElo "2567"]
[Result "1-0"]
[Round "06"]
[TimeControl "180+2"]
[Date "2023.01.17"]
[WhiteClock "0:00:20"]
[BlackClock "0:00:05"]

1. e4 {[%clk 0:03:00]}  c5 {[%clk 0:02:59]} 2. c3 {[%clk 0:03:01]}  d5 {[%clk 0:02:53]} 3. exd5 {[%clk 0:03:01]}  Qxd5 {[%clk 0:02:53]} 4. d4 {[%clk 0:03:02]}  Bf5 {[%clk 0:02:50]} 5. Nf3 {[%clk 0:02:53]}  Nc6 {[%clk 0:02:45]} 6. Be2 {[%clk 0:02:52]}  cxd4 {[%clk 0:02:44]} 7. cxd4 {[%clk 0:02:52]}  Bxb1 {[%clk 0:02:43]} 8. Rxb1 {[%clk 0:02:53]}  e6 {[%clk 0:02:41]} 9. a3 {[%clk 0:02:51]}  Nf6 {[%clk 0:02:41]} 10. O-O {[%clk 0:02:51]}  Be7 {[%clk 0:02:41]} 11. Be3 {[%clk 0:02:50]}  O-O {[%clk 0:02:40]} 12. Rc1 {[%clk 0:02:50]}  Rfd8 {[%clk 0:02:35]} 13. Bc4 {[%clk 0:02:50]}  Qd6 {[%clk 0:02:35]} 14. Ba2 {[%clk 0:02:42]}  Nd5 {[%clk 0:02:34]} 15. Qb3 {[%clk 0:02:41]}  Rab8 {[%clk 0:02:27]} 16. Rfe1 {[%clk 0:02:39]}  h6 {[%clk 0:02:26]} 17. Bb1 {[%clk 0:02:38]}  Nxe3 {[%clk 0:02:15]} 18. fxe3 {[%clk 0:02:37]}  Bf6 {[%clk 0:02:13]} 19. Rf1 {[%clk 0:02:35]}  g6 {[%clk 0:02:08]} 20. Nd2 {[%clk 0:02:14]}  Bg7 {[%clk 0:02:07]} 21. Ne4 {[%clk 0:02:14]}  Qe7 {[%clk 0:02:07]} 22. Rf3 {[%clk 0:02:04]}  Rbc8 {[%clk 0:02:02]} 23. Rcf1 {[%clk 0:02:04]}  Rf8 {[%clk 0:02:02]} 24. Ng3 {[%clk 0:01:56]}  Na5 {[%clk 0:01:54]} 25. Qd3 {[%clk 0:01:52]}  Nc4 {[%clk 0:01:54]} 26. R3f2 {[%clk 0:01:46]}  Nd6 {[%clk 0:01:34]} 27. Nh5 {[%clk 0:01:36]}  Nf5 {[%clk 0:01:06]} 28. Nxg7 {[%clk 0:01:28]}  Kxg7 {[%clk 0:01:06]} 29. e4 {[%clk 0:01:26]}  Nd6 {[%clk 0:01:06]} 30. Rf6 {[%clk 0:01:18]}  Ne8 {[%clk 0:01:01]} 31. e5 {[%clk 0:01:17]}  Kg8 {[%clk 0:00:56]} 32. Rxg6+ {[%clk 0:00:57]}  fxg6 {[%clk 0:00:55]} 33. Qxg6+ {[%clk 0:00:57]}  Qg7 {[%clk 0:00:33]} 34. Qxe6+ {[%clk 0:00:57]}  Kh8 {[%clk 0:00:30]} 35. Rxf8+ {[%clk 0:00:56]}  Qxf8 {[%clk 0:00:30]} 36. Qxc8 {[%clk 0:00:56]}  Qg8 {[%clk 0:00:16]} 37. Qxb7 {[%clk 0:00:52]}  Ng7 {[%clk 0:00:14]} 38. d5 {[%clk 0:00:49]}  Qe8 {[%clk 0:00:13]} 39. e6 {[%clk 0:00:42]}  Qa4 {[%clk 0:00:13]} 40. Qc8+ {[%clk 0:00:40]}  Ne8 {[%clk 0:00:13]} 41. Qc3+ {[%clk 0:00:39]}  Kg8 {[%clk 0:00:12]} 42. Bc2 {[%clk 0:00:36]}  Qb5 {[%clk 0:00:10]} 43. Qd3 {[%clk 0:00:30]}  Qc5+ {[%clk 0:00:09]} 44. Kf1 {[%clk 0:00:30]}  Kf8 {[%clk 0:00:09]} 45. b4 {[%clk 0:00:21]}  Qe7 {[%clk 0:00:04]} 46. Qf5+ {[%clk 0:00:20]}  Nf6 {[%clk 0:00:04]} 47. d6 {[%clk 0:00:19]}  Qg7 {[%clk 0:00:04]} 48. e7+ {[%clk 0:00:19]}  Ke8 {[%clk 0:00:05]} 49. Ba4+ {[%clk 0:00:19]}  Kf7 {[%clk 0:00:05]} 50. e8=Q# {[%clk 0:00:20]} 1-0


[Site "https://www.chess.com"]

[Event "Titled Tuesday Blitz January 17 Early 2023"]
[White "Lortkipanidze, Nodar"]
[Black "Dominguez Perez, Leinier"]
[WhiteFideId "13604058"]
[BlackFideId "3503240"]
[WhiteElo "2406"]
[BlackElo "2739"]
[Result "0-1"]
[Round "06"]
[TimeControl "180+2"]
[Date "2023.01.17"]
[WhiteClock "0:00:17"]
[BlackClock "0:00:05"]

1. e4 {[%clk 0:03:00]}  Nf6 {[%clk 0:02:59]} 2. Nc3 {[%clk 0:02:58]}  d5 {[%clk 0:02:58]} 3. exd5 {[%clk 0:02:53]}  Nxd5 {[%clk 0:02:58]} 4. g3 {[%clk 0:02:54]}  e5 {[%clk 0:02:49]} 5. Bg2 {[%clk 0:02:51]}  Be6 {[%clk 0:02:49]} 6. Nge2 {[%clk 0:02:49]}  Nc6 {[%clk 0:02:48]} 7. O-O {[%clk 0:02:49]}  Bc5 {[%clk 0:02:45]} 8. d3 {[%clk 0:02:49]}  O-O {[%clk 0:02:43]} 9. h3 {[%clk 0:02:49]}  Qd7 {[%clk 0:02:39]} 10. Kh2 {[%clk 0:02:49]}  Rad8 {[%clk 0:02:34]} 11. f4 {[%clk 0:02:47]}  exf4 {[%clk 0:02:31]} 12. Nxf4 {[%clk 0:02:47]}  Nxf4 {[%clk 0:02:28]} 13. Bxf4 {[%clk 0:02:47]}  Nd4 {[%clk 0:02:11]} 14. Ne4 {[%clk 0:02:39]}  Be7 {[%clk 0:02:03]} 15. c3 {[%clk 0:02:39]}  Nc6 {[%clk 0:01:57]} 16. d4 {[%clk 0:02:39]}  Bd5 {[%clk 0:01:58]} 17. Qe2 {[%clk 0:01:50]}  Rfe8 {[%clk 0:01:40]} 18. Qf2 {[%clk 0:01:31]}  Bf8 {[%clk 0:01:37]} 19. Rfe1 {[%clk 0:01:29]}  Re6 {[%clk 0:01:37]} 20. Ng5 {[%clk 0:01:20]}  Rxe1 {[%clk 0:01:35]} 21. Rxe1 {[%clk 0:01:21]}  h6 {[%clk 0:01:35]} 22. Nf3 {[%clk 0:01:20]}  Bxa2 {[%clk 0:01:31]} 23. Qe2 {[%clk 0:01:13]}  Bd5 {[%clk 0:01:27]} 24. Qb5 {[%clk 0:01:10]}  Bxf3 {[%clk 0:01:26]} 25. Bxf3 {[%clk 0:01:10]}  Nxd4 {[%clk 0:01:27]} 26. Qf1 {[%clk 0:01:03]}  Nxf3+ {[%clk 0:01:26]} 27. Qxf3 {[%clk 0:01:04]}  c5 {[%clk 0:01:25]} 28. Re2 {[%clk 0:01:03]}  b5 {[%clk 0:01:17]} 29. Kg2 {[%clk 0:00:54]}  a5 {[%clk 0:01:12]} 30. Rd2 {[%clk 0:00:49]}  Qc8 {[%clk 0:01:11]} 31. Rxd8 {[%clk 0:00:47]}  Qxd8 {[%clk 0:01:11]} 32. Qb7 {[%clk 0:00:47]}  Qd3 {[%clk 0:01:05]} 33. Qb8 {[%clk 0:00:43]}  a4 {[%clk 0:01:03]} 34. h4 {[%clk 0:00:42]}  b4 {[%clk 0:01:00]} 35. Kh3 {[%clk 0:00:39]}  h5 {[%clk 0:00:51]} 36. Qa8 {[%clk 0:00:38]}  Qd7+ {[%clk 0:00:39]} 37. Kh2 {[%clk 0:00:37]}  b3 {[%clk 0:00:38]} 38. Be3 {[%clk 0:00:33]}  Qe7 {[%clk 0:00:30]} 39. Bg1 {[%clk 0:00:26]}  Qe2+ {[%clk 0:00:27]} 40. Kh3 {[%clk 0:00:27]}  Qc4 {[%clk 0:00:21]} 41. Kh2 {[%clk 0:00:20]}  g6 {[%clk 0:00:20]} 42. Kh3 {[%clk 0:00:20]}  Qe6+ {[%clk 0:00:16]} 43. Kh2 {[%clk 0:00:20]}  Qf5 {[%clk 0:00:16]} 44. Kh1 {[%clk 0:00:15]}  Qh3+ {[%clk 0:00:10]} 45. Bh2 {[%clk 0:00:15]}  Qg4 {[%clk 0:00:06]} 46. Bg1 {[%clk 0:00:14]}  Qc4 {[%clk 0:00:04]} 47. Kh2 {[%clk 0:00:14]}  Kg7 {[%clk 0:00:04]} 48. Be3 {[%clk 0:00:13]}  Qe2+ {[%clk 0:00:04]} 49. Kh3 {[%clk 0:00:13]}  Qxe3 {[%clk 0:00:04]} 50. Qxa4 {[%clk 0:00:14]}  Qe6+ {[%clk 0:00:04]} 51. Kg2 {[%clk 0:00:14]}  c4 {[%clk 0:00:05]} 52. Kf3 {[%clk 0:00:14]}  Qf5+ {[%clk 0:00:04]} 53. Ke3 {[%clk 0:00:15]}  Bc5+ {[%clk 0:00:03]} 54. Ke2 {[%clk 0:00:15]}  Qd3+ {[%clk 0:00:03]} 55. Ke1 {[%clk 0:00:15]}  Qb1+ {[%clk 0:00:04]} 56. Ke2 {[%clk 0:00:16]}  Qxb2+ {[%clk 0:00:05]} 57. Kf3 {[%clk 0:00:17]}  Qxc3+ {[%clk 0:00:05]} 58. Ke4 {[%clk 0:00:18]}  Qd4+ {[%clk 0:00:05]} 59. Kf3 {[%clk 0:00:18]}  b2 {[%clk 0:00:06]} 60. Qa2 {[%clk 0:00:16]}  Qd3+ {[%clk 0:00:06]} 61. Kf4 {[%clk 0:00:17]}  Bd6+ {[%clk 0:00:05]} 0-1


[Site "https://www.chess.com"]

[Event "Titled Tuesday Blitz January 17 Early 2023"]
[White "Predke, Alexandr"]
[Black "Salimova, Nurgyul"]
[WhiteFideId "24107581"]
[BlackFideId "2915138"]
[WhiteElo "2685"]
[BlackElo "2391"]
[Result "1-0"]
[Round "06"]
[TimeControl "180+2"]
[Date "2023.01.17"]
[WhiteClock "0:00:03"]
[BlackClock "0:00:03"]

1. e4 {[%clk 0:02:55]}  e5 {[%clk 0:02:59]} 2. Nf3 {[%clk 0:02:54]}  Nc6 {[%clk 0:03:00]} 3. Bb5 {[%clk 0:02:53]}  a6 {[%clk 0:03:00]} 4. Ba4 {[%clk 0:02:52]}  Nf6 {[%clk 0:02:55]} 5. O-O {[%clk 0:02:51]}  Nxe4 {[%clk 0:02:53]} 6. d4 {[%clk 0:02:44]}  b5 {[%clk 0:02:52]} 7. Bb3 {[%clk 0:02:43]}  d5 {[%clk 0:02:53]} 8. dxe5 {[%clk 0:02:32]}  Be6 {[%clk 0:02:53]} 9. Nbd2 {[%clk 0:02:32]}  Nc5 {[%clk 0:02:50]} 10. c3 {[%clk 0:02:32]}  d4 {[%clk 0:02:50]} 11. Bxe6 {[%clk 0:02:26]}  Nxe6 {[%clk 0:02:51]} 12. cxd4 {[%clk 0:02:23]}  Ncxd4 {[%clk 0:02:49]} 13. a4 {[%clk 0:02:21]}  Bb4 {[%clk 0:02:48]} 14. axb5 {[%clk 0:02:19]}  Nxb5 {[%clk 0:02:44]} 15. Ne4 {[%clk 0:02:19]}  O-O {[%clk 0:02:40]} 16. Qb3 {[%clk 0:02:17]}  a5 {[%clk 0:02:38]} 17. Be3 {[%clk 0:02:14]}  Nbd4 {[%clk 0:02:29]} 18. Nxd4 {[%clk 0:02:14]}  Nxd4 {[%clk 0:02:29]} 19. Qc4 {[%clk 0:02:15]}  c5 {[%clk 0:01:33]} 20. Rad1 {[%clk 0:02:12]}  Qh4 {[%clk 0:01:30]} 21. f4 {[%clk 0:02:11]}  Nf5 {[%clk 0:00:54]} 22. Rd3 {[%clk 0:01:35]}  Rfd8 {[%clk 0:00:46]} 23. Nd6 {[%clk 0:01:17]}  Nxd6 {[%clk 0:00:39]} 24. exd6 {[%clk 0:01:18]}  Rd7 {[%clk 0:00:25]} 25. Bxc5 {[%clk 0:00:38]}  Rc8 {[%clk 0:00:24]} 26. Rd5 {[%clk 0:00:38]}  Bxc5+ {[%clk 0:00:19]} 27. Rxc5 {[%clk 0:00:38]}  Rxc5 {[%clk 0:00:18]} 28. Qxc5 {[%clk 0:00:38]}  Qf6 {[%clk 0:00:12]} 29. Rd1 {[%clk 0:00:32]}  g6 {[%clk 0:00:09]} 30. Qe5 {[%clk 0:00:19]}  Qd8 {[%clk 0:00:09]} 31. Kh1 {[%clk 0:00:14]}  a4 {[%clk 0:00:08]} 32. h3 {[%clk 0:00:14]}  Qb8 {[%clk 0:00:06]} 33. Kh2 {[%clk 0:00:13]}  Qd8 {[%clk 0:00:03]} 34. Rd5 {[%clk 0:00:13]}  Qc8 {[%clk 0:00:02]} 35. Qd4 {[%clk 0:00:12]}  Qd8 {[%clk 0:00:03]} 36. f5 {[%clk 0:00:12]}  Qb8 {[%clk 0:00:02]} 37. f6 {[%clk 0:00:10]}  Qd8 {[%clk 0:00:02]} 38. Qe5 {[%clk 0:00:08]}  h5 {[%clk 0:00:02]} 39. h4 {[%clk 0:00:08]}  Qb8 {[%clk 0:00:02]} 40. Kg3 {[%clk 0:00:07]}  Qc8 {[%clk 0:00:03]} 41. Qd4 {[%clk 0:00:05]}  Qd8 {[%clk 0:00:03]} 42. Kf4 {[%clk 0:00:05]}  Qe8 {[%clk 0:00:04]} 43. Qe5 {[%clk 0:00:04]}  Qd8 {[%clk 0:00:04]} 44. Kg5 {[%clk 0:00:04]}  Kh7 {[%clk 0:00:04]} 45. Rd4 {[%clk 0:00:03]}  Qf8 {[%clk 0:00:04]} 46. Kf4 {[%clk 0:00:04]}  Qh6+ {[%clk 0:00:05]} 47. Kf3 {[%clk 0:00:03]}  Qf8 {[%clk 0:00:05]} 48. g4 {[%clk 0:00:03]}  Qa8+ {[%clk 0:00:06]} 49. Kf4 {[%clk 0:00:03]}  Rb7 {[%clk 0:00:05]} 50. gxh5 {[%clk 0:00:03]}  Rb3 {[%clk 0:00:04]} 51. hxg6+ {[%clk 0:00:03]}  fxg6 {[%clk 0:00:05]} 52. Qe4 {[%clk 0:00:02]}  Qc8 {[%clk 0:00:04]} 53. d7 {[%clk 0:00:02]}  Qc1+ {[%clk 0:00:04]} 54. Ke5 {[%clk 0:00:02]}  Qc5+ {[%clk 0:00:04]} 55. Ke6 {[%clk 0:00:02]}  Rb6+ {[%clk 0:00:04]} 56. Kf7 {[%clk 0:00:02]}  Rb8 {[%clk 0:00:03]} 57. Rd6 {[%clk 0:00:01]}  Qh5 {[%clk 0:00:02]} 58. Qe7 {[%clk 0:00:02]}  g5+ {[%clk 0:00:03]} 59. Ke6+ {[%clk 0:00:02]}  Kh6 {[%clk 0:00:03]} 60. Qg7# {[%clk 0:00:03]} 1-0


[Site "https://www.chess.com"]

[Event "Titled Tuesday Blitz January 17 Early 2023"]
[White "Alex_Sahakyan2006"]
[Black "Oparin, Grigoriy"]
[BlackFideId "24125890"]
[WhiteElo "2675"]
[BlackElo "2667"]
[Result "0-1"]
[Round "06"]
[TimeControl "180+2"]
[Date "2023.01.17"]
[WhiteClock "0:00:06"]
[BlackClock "0:01:30"]

1. e4 {[%clk 0:03:00]}  c5 {[%clk 0:03:00]} 2. Nf3 {[%clk 0:02:59]}  Nc6 {[%clk 0:02:59]} 3. Nc3 {[%clk 0:02:58]}  e6 {[%clk 0:02:57]} 4. d4 {[%clk 0:02:57]}  cxd4 {[%clk 0:02:58]} 5. Nxd4 {[%clk 0:02:58]}  a6 {[%clk 0:02:57]} 6. g4 {[%clk 0:02:56]}  b5 {[%clk 0:02:54]} 7. Bg2 {[%clk 0:02:56]}  Bb7 {[%clk 0:02:54]} 8. Be3 {[%clk 0:02:55]}  Rc8 {[%clk 0:02:50]} 9. h4 {[%clk 0:02:50]}  Ne5 {[%clk 0:02:45]} 10. Qe2 {[%clk 0:02:46]}  Nc4 {[%clk 0:02:44]} 11. O-O-O {[%clk 0:02:46]}  Bb4 {[%clk 0:02:29]} 12. Rd3 {[%clk 0:02:24]}  Ne5 {[%clk 0:02:21]} 13. Rd2 {[%clk 0:02:02]}  Bxc3 {[%clk 0:02:18]} 14. bxc3 {[%clk 0:02:02]}  Qa5 {[%clk 0:02:19]} 15. Nb3 {[%clk 0:01:58]}  Qxa2 {[%clk 0:02:17]} 16. Rd4 {[%clk 0:01:50]}  Rxc3 {[%clk 0:02:01]} 17. Qd2 {[%clk 0:01:31]}  b4 {[%clk 0:01:52]} 18. Rd1 {[%clk 0:01:15]}  Nf6 {[%clk 0:01:33]} 19. g5 {[%clk 0:01:02]}  O-O {[%clk 0:01:33]} 20. Rxb4 {[%clk 0:00:20]}  Qa3+ {[%clk 0:01:33]} 21. Kb1 {[%clk 0:00:21]}  Qxb4 {[%clk 0:01:33]} 22. gxf6 {[%clk 0:00:20]}  Rxb3+ {[%clk 0:01:30]} 23. cxb3 {[%clk 0:00:21]}  Qxb3+ {[%clk 0:01:30]} 24. Qb2 {[%clk 0:00:13]}  Qxd1+ {[%clk 0:01:30]} 25. Ka2 {[%clk 0:00:13]}  Qa4+ {[%clk 0:01:30]} 26. Kb1 {[%clk 0:00:06]}  Bxe4+ {[%clk 0:01:30]} 0-1


[Site "https://www.chess.com"]

[Event "Titled Tuesday Blitz January 17 Early 2023"]
[White "Kovalenko, Igor"]
[Black "Trent, Lawrence"]
[WhiteFideId "14117908"]
[BlackFideId "408638"]
[WhiteElo "2674"]
[BlackElo "2403"]
[Result "1-0"]
[Round "06"]
[TimeControl "180+2"]
[Date "2023.01.17"]
[WhiteClock "0:00:34"]
[BlackClock "0:00:16"]

1. d4 {[%clk 0:02:55]}  d5 {[%clk 0:02:52]} 2. c4 {[%clk 0:02:52]}  e6 {[%clk 0:02:37]} 3. Nc3 {[%clk 0:02:41]}  Nf6 {[%clk 0:02:35]} 4. Nf3 {[%clk 0:02:41]}  Bb4 {[%clk 0:02:30]} 5. Qa4+ {[%clk 0:02:40]}  Nc6 {[%clk 0:02:23]} 6. e3 {[%clk 0:02:40]}  O-O {[%clk 0:02:22]} 7. h3 {[%clk 0:02:40]}  a6 {[%clk 0:02:21]} 8. g4 {[%clk 0:02:38]}  Ne4 {[%clk 0:02:20]} 9. Qc2 {[%clk 0:02:38]}  f5 {[%clk 0:02:14]} 10. Be2 {[%clk 0:02:27]}  dxc4 {[%clk 0:02:11]} 11. gxf5 {[%clk 0:02:15]}  exf5 {[%clk 0:02:05]} 12. Bxc4+ {[%clk 0:02:15]}  Kh8 {[%clk 0:02:04]} 13. a3 {[%clk 0:02:15]}  Bxc3+ {[%clk 0:02:04]} 14. bxc3 {[%clk 0:02:16]}  Qe8 {[%clk 0:01:57]} 15. Bb2 {[%clk 0:02:00]}  f4 {[%clk 0:01:53]} 16. Bd5 {[%clk 0:01:59]}  Bf5 {[%clk 0:01:52]} 17. Nh4 {[%clk 0:01:43]}  fxe3 {[%clk 0:01:26]} 18. Nxf5 {[%clk 0:01:36]}  Rxf5 {[%clk 0:01:22]} 19. Qxe4 {[%clk 0:01:19]}  exf2+ {[%clk 0:01:05]} 20. Kd2 {[%clk 0:01:13]}  Qf8 {[%clk 0:01:05]} 21. Raf1 {[%clk 0:01:05]}  Re8 {[%clk 0:01:05]} 22. Be6 {[%clk 0:01:05]}  Rf4 {[%clk 0:01:01]} 23. Qe2 {[%clk 0:01:02]}  Qf6 {[%clk 0:00:46]} 24. d5 {[%clk 0:01:01]}  Na5 {[%clk 0:00:46]} 25. Kc1 {[%clk 0:00:53]}  Nc4 {[%clk 0:00:36]} 26. Rh2 {[%clk 0:00:52]}  Rf8 {[%clk 0:00:33]} 27. Rg2 {[%clk 0:00:41]}  Rf3 {[%clk 0:00:25]} 28. Qxc4 {[%clk 0:00:39]}  Re3 {[%clk 0:00:16]} 29. Rgxf2 {[%clk 0:00:34]} 1-0


[Site "https://www.chess.com"]